bitfinex/quotes_ETHUSD_20240601
["timestamp","ask_amount","ask_price","bid_price","bid_amount"]
[1717274815840,2.62783,3805.5,3805.4,0.76669697]
[1717274816009,2.62783,3805.5,3805.4,0.707]
[1717274816210,2.62783,3805.5,3805.4,0.76667441]
[1717274825235,2.62783,3805.5,3805.4,0.05967441]
[1717274825435,2.62783,3805.5,3805.4,0.76667441]
[1717274825934,2.62758,3805.8,3805.4,1.01074462]
[1717274826231,2.62758,3805.8,3805.7,0.707]
[1717274826640,2.62758,3805.8,3805.7,0.76664857]
[1717274827315,2.62736,3806.1,3805.7,0.76664857]
[1717274827633,2.62736,3806.1,3806.0,0.707]
[1717274828012,2.62736,3806.1,3806.0,0.76662274]
[1717274852429,3.02359788,3806.1,3806.0,0.05962274]
[1717274852841,3.02359788,3806.1,3805.8,0.707]
[1717274853348,2.62762,3805.8,3805.1,3.03932771]
[1717274853552,2.4631,3805.7,3805.4,0.707]
[1717274853740,2.4631,3805.7,3805.6,0.707]
[1717274854066,2.4631,3805.7,3805.6,0.76654007]
[1717274858380,2.972172,3805.7,3805.6,0.76654007]
[1717274859341,2.4631,3805.7,3805.6,0.76654007]
[1717274868844,2.4631,3805.7,3805.6,0.05954007]
[1717274869077,2.6277,3805.6,3805.5,0.707]
[1717274878298,2.62789,3805.4,3805.1,0.41132771]
[1717274878702,2.62789,3805.4,3805.3,0.707]
[1717274880278,2.57789,3805.4,3805.3,0.707]
[1717274884307,2.57789,3805.4,3805.3,0.76666258]
[1717274900695,2.57789,3805.4,3805.3,0.05966258]
[1717274900888,2.57789,3805.4,3805.3,0.707]
[1717274901088,2.57789,3805.4,3805.3,0.76628319]
[1717274901940,2.62736,3806.1,3805.4,1.2627]
[1717274902150,2.62736,3806.1,3806.0,0.707]
[1717274902420,2.62716,3806.4,3806.0,0.7662562]
[1717274902623,2.62716,3806.4,3806.3,0.707]
[1717274902787,2.62716,3806.4,3806.3,0.76624327]
[1717274903187,2.62695,3806.7,3806.3,0.76624327]
[1717274903422,3.0,3806.6,3806.5,0.707]
[1717274903630,2.62695,3806.7,3806.5,0.707]
[1717274906006,3.266672,3807.0,3805.7,7.32]
[1717274906007,2.62721,3806.4,3805.7,7.32]
[1717274906189,2.62731,3806.2,3806.1,0.707]
[1717274906626,2.62731,3806.2,3806.1,0.76625189]
[1717274907127,2.62731,3806.2,3806.1,0.05925189]
[1717274907327,2.62731,3806.2,3805.7,7.32]
[1717274907635,2.62731,3806.2,3805.8,0.707]
[1717274908009,2.62731,3806.2,3805.9,0.05926051]
[1717274915153,2.62731,3806.2,3806.0,0.707]
[1717274915510,2.62731,3806.2,3806.1,0.05910366]
[1717274915957,2.62731,3806.2,3806.0,0.707]
[1717274916348,2.62731,3806.2,3806.1,0.05910366]
[1717274916549,2.62731,3806.2,3806.0,0.707]
[1717274917050,2.62731,3806.2,3806.1,0.05910366]
[1717274917459,2.62731,3806.2,3806.0,0.707]
[1717274917763,2.62731,3806.2,3806.1,0.05910366]
[1717274918228,2.62731,3806.2,3806.0,0.707]
[1717274918431,2.62731,3806.2,3806.1,0.05910366]
[1717274918627,2.62731,3806.2,3806.0,0.707]
[1717274918951,2.62731,3806.2,3806.1,0.05910366]
[1717274919150,2.62731,3806.2,3806.0,0.707]
[1717274919510,2.62731,3806.2,3806.1,0.05910366]
[1717274919634,2.62731,3806.2,3806.0,0.707]
[1717274919965,2.62731,3806.2,3806.1,0.05910366]
[1717274920256,2.62731,3806.2,3806.0,0.707]
[1717274920563,2.62731,3806.2,3806.1,0.05910366]
[1717274920985,2.62731,3806.2,3806.0,0.707]
[1717274921359,2.62731,3806.2,3806.1,0.05910366]
[1717274921671,2.62731,3806.2,3806.0,0.707]
[1717274921968,2.62731,3806.2,3806.1,0.05910366]
[1717274922371,2.62731,3806.2,3806.0,0.707]
[1717274922788,2.62731,3806.2,3806.1,0.05910366]
[1717274923306,2.62731,3806.2,3806.0,0.707]
[1717274923506,2.62731,3806.2,3806.1,0.05910366]
[1717274923656,2.62731,3806.2,3806.0,0.707]
[1717274923849,2.62731,3806.2,3806.1,0.05910366]
[1717274924049,2.62731,3806.2,3806.0,0.707]
[1717274924292,2.62731,3806.2,3806.1,0.05910366]
[1717274924600,2.62731,3806.2,3806.0,0.707]
[1717274924964,2.62731,3806.2,3806.1,0.05910366]
[1717274925376,2.62731,3806.2,3806.0,0.707]
[1717274925747,2.62731,3806.2,3806.1,0.05910366]
[1717274925976,2.62731,3806.2,3806.0,0.707]
[1717274926401,2.62731,3806.2,3806.1,0.05910366]
[1717274926771,2.62731,3806.2,3806.0,0.707]
[1717274927091,2.62731,3806.2,3806.1,0.05910366]
[1717274927567,2.62731,3806.2,3806.1,0.76610366]
[1717274927772,2.62731,3806.2,3806.1,0.707]
[1717274928076,2.62731,3806.2,3806.1,0.76609399]
[1717274940303,2.62731,3806.2,3806.1,0.707]
[1717274945108,2.62731,3806.2,3806.1,0.76611652]
[1717274946813,2.62731,3806.2,3806.1,0.05911652]
[1717274947034,2.62731,3806.2,3806.1,0.76611652]
[1717274947239,2.62731,3806.2,3806.1,0.707]
[1717274947384,2.62731,3806.2,3806.1,0.76611652]
[1717274950926,2.62731,3806.2,3806.1,0.05911652]
[1717274951083,3.138411,3806.2,3805.9,0.707]
[1717274951282,2.62731,3806.2,3806.0,0.05915307]
[1717274951484,2.62731,3806.2,3805.9,0.707]
[1717274951738,2.62731,3806.2,3806.1,0.05914876]
[1717274951886,2.62731,3806.2,3805.9,0.707]
[1717274952390,2.62731,3806.2,3806.0,0.05915307]
[1717274952787,2.62731,3806.2,3805.9,0.707]
[1717274952992,2.62731,3806.2,3806.1,0.05914876]
[1717274953205,2.62731,3806.2,3806.0,0.05915307]
[1717274953400,2.62731,3806.2,3805.9,0.707]
[1717274953721,2.62763,3805.8,3805.6,0.707]
[1717274953882,2.2968,3805.7,3805.6,0.707]
[1717274955312,2.62778,3805.5,3804.9,7.32]
[1717274955625,2.62778,3805.5,3805.4,0.707]
[1717274966579,2.62808,3805.1,3804.5,7.32]
[1717274966799,2.62808,3805.1,3804.3,1.2627]
[1717274967001,2.62808,3805.1,3805.0,0.707]
[1717274967307,2.62808,3805.1,3805.0,0.76633804]
[1717274967968,2.62808,3805.1,3805.0,0.05933804]
[1717274968167,2.62808,3805.1,3805.0,0.707]
[1717274968388,2.62808,3805.1,3805.0,0.76633804]
[1717274969376,2.62808,3805.1,3805.0,0.05933804]
[1717274969705,2.62808,3805.1,3805.0,0.76633804]
[1717274975410,2.62808,3805.1,3805.0,0.05933804]
[1717274975707,2.62808,3805.1,3805.0,0.707]
[1717274975870,2.62808,3805.1,3805.0,0.76634124]
[1717274985703,2.62785,3805.4,3805.0,0.76634124]
[1717274985903,2.62785,3805.4,3805.3,0.707]
[1717274986103,2.62785,3805.4,3805.3,0.7663283]
[1717274990310,5.07204,3805.7,3805.3,0.7663283]
[1717274990510,5.07204,3805.7,3805.6,0.707]
[1717274995246,5.07204,3805.7,3805.6,0.7661671]
[1717274995542,2.62764,3805.7,3805.6,0.7661671]
[1717275001668,2.62744,3806.0,3805.6,0.7661671]
[1717275001949,2.62744,3806.0,3805.9,0.707]
[1717275002350,2.62744,3806.0,3805.9,0.7623134]
[1717275003359,2.62744,3806.0,3805.9,0.707]
[1717275012240,2.62744,3806.0,3805.4,1.2627]
[1717275012435,2.62744,3806.0,3805.8,0.707]
[1717275012854,2.62744,3806.0,3805.9,0.05520739]
[1717275013138,2.62744,3806.0,3805.8,0.707]
[1717275013364,2.62744,3806.0,3805.9,0.05520739]
[1717275013573,2.62744,3806.0,3805.8,0.707]
[1717275013730,2.62744,3806.0,3805.9,0.05520739]
[1717275013934,2.62744,3806.0,3805.8,0.707]
[1717275014134,2.62744,3806.0,3805.9,0.05520739]
[1717275014362,2.62744,3806.0,3805.8,0.707]
[1717275014636,2.62744,3806.0,3805.9,0.05520739]
[1717275015150,2.62744,3806.0,3805.8,0.707]
[1717275015474,2.62744,3806.0,3805.9,0.05520739]
[1717275015772,2.62744,3806.0,3805.8,0.707]
[1717275016069,2.62744,3806.0,3805.9,0.05520739]
[1717275016458,2.62744,3806.0,3805.8,0.707]
[1717275016964,2.62744,3806.0,3805.9,0.05520739]
[1717275017211,2.62744,3806.0,3805.8,0.707]
[1717275017349,2.62744,3806.0,3805.9,0.05520739]
[1717275017548,2.62744,3806.0,3805.8,0.707]
[1717275017860,2.62744,3806.0,3805.9,0.05520739]
[1717275018378,2.62744,3806.0,3805.8,0.707]
[1717275018568,2.62744,3806.0,3805.9,0.05520739]
[1717275019075,2.62744,3806.0,3805.8,0.707]
[1717275019442,2.62744,3806.0,3805.9,0.05520739]
[1717275019741,2.62744,3806.0,3805.8,0.707]
[1717275020075,2.62744,3806.0,3805.9,0.05520739]
[1717275020444,2.62764,3805.7,3805.2,7.32]
[1717275020649,2.62764,3805.7,3805.6,0.707]
[1717275020982,2.62764,3805.7,3805.6,0.76222032]
[1717275031478,2.62764,3805.7,3805.6,0.78945805]
[1717275032623,2.62745,3806.0,3805.6,0.78945805]
[1717275032918,2.62745,3806.0,3805.9,0.707]
[1717275033275,2.62745,3806.0,3805.9,0.78946227]
[1717275051041,2.62745,3806.0,3805.9,0.08246227]
[1717275051246,2.62745,3806.0,3805.9,0.707]
[1717275051463,2.62745,3806.0,3805.9,0.7893466]
[1717275052933,2.62745,3806.0,3805.9,0.0823466]
[1717275053141,4.90085,3806.0,3805.9,0.0823466]
[1717275053449,4.90085,3806.0,3805.6,0.707]
[1717275053667,4.90085,3806.0,3805.7,0.08235664]
[1717275057138,4.90085,3806.0,3805.8,0.707]
[1717275057649,4.90085,3806.0,3805.9,0.0823466]
[1717275057817,4.90085,3806.0,3805.8,0.707]
[1717275058018,4.90085,3806.0,3805.9,0.0823466]
[1717275058215,4.90085,3806.0,3805.8,0.707]
[1717275058540,4.90085,3806.0,3805.9,0.0823787]
[1717275058930,4.90085,3806.0,3805.8,0.707]
[1717275059269,4.90085,3806.0,3805.9,0.0823787]
[1717275059479,4.90085,3806.0,3805.8,0.707]
[1717275059946,4.90085,3806.0,3805.9,0.0823787]
[1717275060336,4.90085,3806.0,3805.8,0.707]
[1717275060733,4.90085,3806.0,3805.9,0.0823787]
[1717275060972,5.390935,3806.0,3805.9,0.0823787]
[1717275061139,2.62763,3805.7,3805.6,0.707]
[1717275061559,2.62763,3805.7,3805.6,0.78939377]
[1717275079109,2.62741,3806.1,3805.6,0.78939377]
[1717275079286,2.62741,3806.1,3805.9,0.707]
[1717275097744,2.62741,3806.1,3805.3,1.2627]
[1717275097946,2.2614,3806.2,3805.8,0.707]
[1717275097947,2.62755,3805.9,3805.8,0.707]
[1717275098374,2.62755,3805.9,3805.8,0.78372415]
[1717275133373,2.62755,3805.9,3805.8,0.07672415]
[1717275133672,2.62755,3805.9,3805.7,0.707]
[1717275134179,2.62755,3805.9,3805.8,0.07581395]
[1717275134537,2.62755,3805.9,3805.7,0.707]
[1717275134748,2.62755,3805.9,3805.8,0.07581395]
[1717275134979,2.62755,3805.9,3805.7,0.707]
[1717275135169,2.62755,3805.9,3805.8,0.07581395]
[1717275135564,2.62755,3805.9,3805.7,0.707]
[1717275135763,2.62755,3805.9,3805.8,0.07581395]
[1717275136075,2.6273,3806.2,3805.8,0.07581395]
[1717275136247,2.6273,3806.2,3805.9,0.707]
[1717275136445,2.6273,3806.2,3805.9,0.78281214]
[1717275136649,2.62705,3806.6,3806.1,0.707]
[1717275136851,2.62679,3807.0,3806.4,0.707]
[1717275137051,2.62679,3807.0,3806.9,0.707]
[1717275137776,2.62679,3807.0,3806.9,0.78271053]
[1717275138074,5.62679,3807.0,3806.9,0.78271053]
[1717275138266,5.62679,3807.0,3806.9,0.707]
[1717275142677,5.62679,3807.0,3806.9,0.78271053]
[1717275144388,2.62679,3807.0,3806.9,0.78271053]
[1717275145510,2.62679,3807.0,3806.9,0.07571053]
[1717275145708,2.62679,3807.0,3806.7,0.707]
[1717275145857,2.62679,3807.0,3806.8,0.07571555]
[1717275158097,2.62679,3807.0,3806.7,0.707]
[1717275158299,2.62679,3807.0,3806.8,0.07546818]
[1717275158487,2.62679,3807.0,3806.7,0.707]
[1717275158811,2.62679,3807.0,3806.8,0.07546818]
[1717275159111,2.62679,3807.0,3806.7,0.707]
[1717275159610,2.62679,3807.0,3806.8,0.07546818]
[1717275160118,2.62679,3807.0,3806.7,0.707]
[1717275160274,2.62679,3807.0,3806.9,0.707]
[1717275160275,2.62674,3807.0,3806.9,0.707]
[1717275177445,3.129864,3807.0,3806.7,0.707]
[1717275177722,2.62674,3807.0,3806.7,0.707]
[1717275177915,2.62674,3807.0,3806.8,0.07544891]
[1717275178107,2.62674,3807.0,3806.7,0.707]
[1717275178512,2.62674,3807.0,3806.8,0.07544891]
[1717275178828,2.62674,3807.0,3806.7,0.707]
[1717275179422,2.62674,3807.0,3806.8,0.07544891]
[1717275179832,2.62674,3807.0,3806.7,0.707]
[1717275180332,2.62674,3807.0,3806.8,0.07544891]
[1717275180687,2.62674,3807.0,3806.7,0.707]
[1717275180929,2.62674,3807.0,3806.8,0.07544891]
[1717275181326,2.62674,3807.0,3806.7,0.707]
[1717275181732,2.62674,3807.0,3806.8,0.07544891]
[1717275182025,2.62674,3807.0,3806.7,0.707]
[1717275182429,2.62674,3807.0,3806.8,0.07548745]
[1717275182830,2.62674,3807.0,3806.7,0.707]
[1717275183136,2.627,3806.7,3806.1,1.2627]
[1717275183310,2.627,3806.7,3806.6,0.707]
[1717275184200,2.627,3806.7,3806.6,0.78198546]
[1717275198023,2.627,3806.7,3806.6,0.07498546]
[1717275198224,5.071,3806.7,3806.6,0.07498546]
[1717275198462,5.071,3806.7,3806.2,0.707]
[1717275198681,5.071,3806.7,3806.6,0.07472526]
[1717275198682,5.5781,3806.7,3806.6,0.07472526]
[1717275198833,5.5781,3806.7,3806.2,0.707]
[1717275199162,2.62719,3806.4,3806.3,0.07459276]
[1717275199924,2.62719,3806.4,3806.2,0.707]
[1717275200130,2.62719,3806.4,3806.3,0.07459276]
[1717275200666,2.62719,3806.4,3806.2,0.707]
[1717275201332,2.62719,3806.4,3806.3,0.07459276]
[1717275201534,2.62719,3806.4,3806.2,0.707]
[1717275201867,2.62719,3806.4,3806.3,0.07459276]
[1717275202257,2.62719,3806.4,3806.2,0.707]
[1717275202667,2.62719,3806.4,3806.3,0.07459276]
[1717275202968,2.62719,3806.4,3806.2,0.707]
[1717275203272,2.62719,3806.4,3806.3,0.07459276]
[1717275203569,2.62719,3806.4,3806.2,0.707]
[1717275204085,2.62719,3806.4,3806.3,0.07459276]
[1717275204435,2.62719,3806.4,3806.2,0.707]
[1717275204972,2.62719,3806.4,3806.3,0.07459276]
[1717275205175,2.62719,3806.4,3806.2,0.707]
[1717275205578,2.62719,3806.4,3806.3,0.07459276]
[1717275205878,2.62719,3806.4,3806.2,0.707]
[1717275206371,2.62719,3806.4,3806.3,0.07459276]
[1717275206876,2.62719,3806.4,3806.2,0.707]
[1717275207050,2.62719,3806.4,3805.6,7.32]
[1717275207247,2.62746,3806.0,3805.9,0.707]
[1717275209574,2.62717,3806.4,3805.9,1.9697]
[1717275209791,2.62717,3806.4,3806.2,0.707]
[1717275212376,2.62717,3806.4,3806.0,0.19697]
[1717275212685,2.62717,3806.4,3806.3,0.707]
[1717275214178,2.62717,3806.4,3806.3,0.78197187]
[1717275215479,2.62717,3806.4,3806.3,0.07497187]
[1717275215668,2.62717,3806.4,3806.3,0.78197187]
[1717275215868,2.62717,3806.4,3806.3,0.707]
[1717275235715,2.62717,3806.4,3806.2,0.707]
[1717275235920,3.128167,3806.4,3806.2,0.707]
[1717275236108,3.128167,3806.4,3806.3,0.07477907]
[1717275236497,3.128167,3806.4,3806.2,0.707]
[1717275236893,3.128167,3806.4,3806.3,0.07477907]
[1717275237304,3.128167,3806.4,3806.2,0.707]
[1717275237806,3.128167,3806.4,3806.3,0.07477907]
[1717275238007,3.128167,3806.4,3806.2,0.707]
[1717275238317,3.128167,3806.4,3806.3,0.07477907]
[1717275238628,3.128167,3806.4,3806.2,0.707]
[1717275238843,2.6267,3807.1,3805.3,7.32]
[1717275238844,2.62757,3805.8,3805.3,7.32]
[1717275239034,2.62757,3805.8,3805.6,1.9697]
[1717275239498,2.62757,3805.8,3805.6,1.89373647]
[1717275244350,2.62757,3805.8,3805.7,0.07505337]
[1717275261391,2.62757,3805.8,3805.7,0.78205337]
[1717275261591,2.62757,3805.8,3805.7,0.707]
[1717275261791,2.62757,3805.8,3805.7,0.7816329]
[1717275280389,5.441717,3805.8,3805.7,0.7816329]
[1717275280683,5.441717,3805.8,3805.7,0.707]
[1717275289707,3.128017,3805.8,3805.7,0.707]
[1717275289891,2.62757,3805.8,3805.7,0.707]
[1717275290234,2.62757,3805.8,3805.7,0.78182889]
[1717275365169,2.62737,3806.1,3805.7,0.78182889]
[1717275365434,7.32,3807.5,3806.0,0.707]
[1717275365435,5.03232,3806.8,3806.0,0.707]
[1717275365731,5.03232,3806.8,3805.0,1.92091585]
[1717275365732,2.62692,3806.8,3806.7,0.707]
[1717275366392,2.62667,3807.1,3806.7,0.78144801]
[1717275366587,2.62667,3807.1,3807.0,0.707]
[1717275370126,2.62667,3807.1,3807.0,0.7811567]
[1717275408068,2.62667,3807.1,3807.0,0.7699557]
[1717275416280,2.62647,3807.4,3807.0,0.7699557]
[1717275416445,2.62647,3807.4,3807.3,0.707]
[1717275419906,2.62647,3807.4,3807.3,0.78056352]
[1717275422710,2.62625,3807.8,3807.3,0.78056352]
[1717275422886,2.62625,3807.8,3807.7,0.707]
[1717275424494,2.62625,3807.8,3807.7,0.78054345]
[1717275429591,2.62625,3807.8,3807.7,0.07354345]
[1717275429592,3.12642664,3807.8,3807.7,0.07354345]
[1717275429794,5.49762664,3807.8,3807.7,0.07354345]
[1717275430301,5.49762664,3807.8,3807.3,0.707]
[1717275430302,2.3712,3807.4,3807.3,0.707]
[1717275430604,2.3712,3807.4,3807.3,0.78052179]
[1717275449327,2.3712,3807.4,3807.3,0.76052179]
[1717275449534,2.3712,3807.4,3807.3,0.77997069]
[1717275450545,2.62641,3807.5,3807.3,0.77997069]
[1717275450734,2.62641,3807.5,3807.3,2.04267069]
[1717275451341,2.6262,3807.8,3807.3,2.04267069]
[1717275451520,2.6262,3807.8,3807.7,0.707]
[1717275451706,2.6262,3807.8,3807.7,0.77995062]
[1717275469179,2.6262,3807.8,3807.7,0.07295062]
[1717275490788,0.0043164,3807.9,3807.7,0.07295062]
[1717275490991,0.0043164,3807.9,3807.8,0.707]
[1717275491341,0.0043164,3807.9,3807.8,0.7796149]
[1717275532603,0.0043164,3807.9,3807.8,0.707]
[1717275532912,0.0043164,3807.9,3807.8,0.77678531]
[1717275556334,2.6186734,3808.1,3807.8,0.77678531]
[1717275558319,2.6186734,3808.1,3808.0,0.707]
[1717275558837,2.6186734,3808.1,3808.0,0.77510724]
[1717275568448,2.6186734,3808.1,3808.0,0.06810724]
[1717275568745,2.6186734,3808.1,3808.0,0.707]
[1717275568943,2.6186734,3808.1,3808.0,0.77507194]
[1717275572037,2.6186734,3808.1,3808.0,0.75507194]
[1717275576556,2.6186734,3808.1,3808.0,0.06807194]
[1717275576731,2.6186734,3808.1,3808.0,0.77507194]
[1717275576919,2.6186734,3808.1,3808.0,0.707]
[1717275577113,2.6186734,3808.1,3808.0,0.77483438]
[1717275597487,2.6186734,3808.1,3808.0,0.06783438]
[1717275597785,2.6186734,3808.1,3808.0,0.707]
[1717275597986,2.6186734,3808.1,3808.0,0.77239984]
[1717275601395,2.62577,3808.5,3808.0,0.77239984]
[1717275601595,2.62577,3808.5,3808.3,0.707]
[1717275602891,2.62577,3808.5,3808.4,0.707]
[1717275608396,0.00384114,3808.7,3808.4,0.707]
[1717275608697,0.00384114,3808.7,3808.6,0.707]
[1717275617887,0.00384114,3808.7,3808.6,0.77241146]
[1717275626571,0.00384114,3808.7,3808.6,0.06541146]
[1717275626770,0.00384114,3808.7,3808.6,0.707]
[1717275626965,0.00384114,3808.7,3808.6,0.76943839]
[1717275653115,0.00384114,3808.7,3808.6,0.06243839]
[1717275653314,0.00384114,3808.7,3808.6,0.707]
[1717275653620,0.00384114,3808.7,3808.6,0.06229402]
[1717275653787,0.00384114,3808.7,3808.2,1.2627]
[1717275653988,0.00384114,3808.7,3808.6,0.06229402]
[1717275654197,0.00384114,3808.7,3808.6,0.76929402]
[1717275664334,0.00384114,3808.7,3808.6,0.06229402]
[1717275664631,0.00384114,3808.7,3808.6,0.707]
[1717275664832,0.00384114,3808.7,3808.6,0.76925232]
[1717275668453,0.00384114,3808.7,3808.6,0.06225232]
[1717275668647,0.00384114,3808.7,3808.6,0.76925232]
[1717275682872,2.94611325,3808.7,3808.6,0.06225232]
[1717275683071,5.57167325,3808.7,3808.6,0.06225232]
[1717275683302,5.06810114,3808.7,3808.5,0.707]
[1717275683720,5.06810114,3808.7,3808.6,0.05798818]
[1717275683920,5.06810114,3808.7,3808.5,0.707]
[1717275684277,5.06810114,3808.7,3808.6,0.05798818]
[1717275684477,5.06810114,3808.7,3808.5,0.707]
[1717275684791,5.06810114,3808.7,3808.6,0.05798818]
[1717275685105,5.06810114,3808.7,3808.5,0.707]
[1717275685416,5.06810114,3808.7,3808.6,0.05798818]
[1717275685621,5.06810114,3808.7,3808.5,0.707]
[1717275685807,5.06810114,3808.7,3808.6,0.05798818]
[1717275686042,5.06810114,3808.7,3808.5,0.707]
[1717275686336,5.06810114,3808.7,3808.6,0.05798818]
[1717275686705,5.06810114,3808.7,3808.5,0.707]
[1717275687236,5.06810114,3808.7,3808.6,0.05798818]
[1717275687714,2.6258,3808.4,3807.7,7.32]
[1717275687916,2.6258,3808.4,3808.3,0.707]
[1717275688304,2.6258,3808.4,3808.3,0.76500323]
[1717275689017,5.0645,3808.4,3808.3,0.76500323]
[1717275690022,5.0645,3808.4,3808.3,0.05800323]
[1717275690425,2.62598,3808.1,3808.0,0.707]
[1717275690612,5.06468,3808.1,3807.7,7.32]
[1717275691059,5.06468,3808.1,3807.9,0.707]
[1717275694684,4.91198,3807.8,3807.5,0.41100606]
[1717275694849,2.62632,3807.6,3807.5,0.41100606]
[1717275695171,4.91212,3807.6,3807.5,0.41100606]
[1717275695330,4.91212,3807.6,3807.1,7.32]
[1717275695530,4.91212,3807.6,3807.4,0.707]
[1717275696447,4.91212,3807.6,3807.3,0.707]
[1717275697375,2.6266,3807.2,3807.1,7.32]
[1717275697543,4.9124,3807.2,3807.1,7.32]
[1717275699239,4.9124,3807.2,3807.1,7.37634173]
[1717275700550,4.9124,3807.2,3807.1,0.05634173]
[1717275700852,4.9124,3807.2,3807.0,0.707]
[1717275701079,4.9124,3807.2,3807.1,0.05634173]
[1717275701268,4.9124,3807.2,3807.0,0.707]
[1717275701468,4.9124,3807.2,3807.1,0.05634173]
[1717275702092,4.9124,3807.2,3807.0,0.707]
[1717275702259,4.9124,3807.2,3807.1,0.05634173]
[1717275702459,4.9124,3807.2,3807.0,0.707]
[1717275702672,4.9124,3807.2,3807.1,0.05634173]
[1717275702874,4.9124,3807.2,3807.0,0.707]
[1717275703073,4.9124,3807.2,3807.1,0.05634173]
[1717275703283,4.9124,3807.2,3807.0,0.707]
[1717275703484,4.9124,3807.2,3807.1,0.05634173]
[1717275703687,4.9124,3807.2,3807.0,0.707]
[1717275704310,4.9124,3807.2,3807.1,0.05634173]
[1717275704463,4.9124,3807.2,3807.0,0.707]
[1717275704662,4.9124,3807.2,3807.1,0.05634173]
[1717275704880,4.9124,3807.2,3807.0,0.707]
[1717275705088,4.9124,3807.2,3807.1,0.05634173]
[1717275705364,4.9124,3807.2,3807.0,0.707]
[1717275705565,4.9124,3807.2,3807.1,0.05446099]
[1717275705980,4.9124,3807.2,3807.0,0.707]
[1717275706189,4.9124,3807.2,3807.1,0.05446184]
[1717275706387,4.9124,3807.2,3807.0,0.707]
[1717275706691,4.9124,3807.2,3807.1,0.05446184]
[1717275707004,4.9124,3807.2,3807.0,0.707]
[1717275707174,4.9124,3807.2,3807.1,0.05446184]
[1717275707558,4.9124,3807.2,3807.0,0.707]
[1717275707758,4.9124,3807.2,3807.1,0.05446184]
[1717275707993,4.9124,3807.2,3807.0,0.707]
[1717275708195,4.9124,3807.2,3807.1,0.05476034]
[1717275708400,4.9124,3807.2,3806.6,0.41112395]
[1717275708600,4.9124,3807.2,3807.0,0.05476535]
[1717275741115,2.6268,3807.0,3806.8,0.411124]
[1717275741459,2.6268,3807.0,3806.9,0.707]
[1717275741661,2.6268,3807.0,3806.8,0.411124]
[1717275742079,2.6268,3807.0,3806.9,0.707]
[1717275744257,2.6268,3807.0,3806.9,0.05482817]
[1717275745792,2.6268,3807.0,3806.7,0.707]
[1717275746124,2.6268,3807.0,3806.8,0.05483319]
[1717275766645,2.4047,3806.9,3806.8,0.05483319]
[1717275766828,2.62689,3806.8,3806.5,0.707]
[1717275770449,2.62689,3806.8,3806.7,0.707]
[1717275774281,2.62689,3806.8,3806.7,0.76188958]
[1717275803954,2.62667,3807.1,3806.7,0.76188958]
[1717275804277,2.2779,3808.1,3807.0,4.59638]
[1717275804412,2.2779,3808.4,3808.0,0.707]
[1717275805111,2.2779,3808.4,3808.1,0.05528643]
[1717275805302,2.2779,3808.4,3808.0,0.707]
[1717275805303,2.50607411,3808.4,3808.0,0.707]
[1717275805550,2.50607411,3808.4,3808.1,0.05495899]
[1717275805738,2.50607411,3808.4,3807.8,0.707]
[1717275805907,2.62597,3808.2,3807.8,0.707]
[1717275806111,2.50607411,3808.4,3807.9,0.05496902]
[1717275806336,0.25060741,3808.3,3807.9,0.05496902]
[1717275806737,0.25060741,3808.3,3807.6,0.707]
[1717275806949,2.62591,3808.2,3808.0,0.05497042]
[1717275807136,2.62591,3808.2,3807.8,0.707]
[1717275807338,2.62611,3807.9,3807.8,0.707]
[1717275818980,2.62631,3807.7,3807.3,7.32]
[1717275819148,2.62631,3807.7,3807.5,0.707]
[1717275819678,2.62631,3807.7,3807.6,0.05476252]
[1717275821844,2.62631,3807.7,3807.4,0.707]
[1717275822081,2.62631,3807.7,3807.6,0.05299149]
[1717275822287,2.62631,3807.7,3807.5,0.0529965]
[1717275822602,2.62631,3807.7,3807.6,0.05299149]
[1717275822775,2.62631,3807.7,3807.4,0.707]
[1717275823096,2.62631,3807.7,3807.6,0.05299149]
[1717275823301,2.62631,3807.7,3807.5,0.0529965]
[1717275823602,2.62631,3807.7,3807.6,0.05299149]
[1717275823766,2.62631,3807.7,3807.4,0.707]
[1717275824166,2.62631,3807.7,3807.5,0.0529965]
[1717275829413,2.62631,3807.7,3807.4,0.707]
[1717275829705,2.62631,3807.7,3807.6,0.05299149]
[1717275829908,2.62631,3807.7,3807.5,0.0529965]
[1717275830218,2.62631,3807.7,3807.6,0.05299149]
[1717275830505,2.62631,3807.7,3807.4,0.707]
[1717275830713,2.62631,3807.7,3807.6,0.05299149]
[1717275830892,2.62631,3807.7,3807.5,0.0529965]
[1717275831082,2.62631,3807.7,3807.6,0.05299149]
[1717275831473,2.62631,3807.7,3807.4,0.707]
[1717275831773,2.62631,3807.7,3807.5,0.05306394]
[1717275843522,2.62631,3807.7,3807.6,0.707]
[1717275844028,2.62631,3807.7,3807.6,0.75869389]
[1717275860437,2.62607,3808.0,3807.6,0.75869389]
[1717275860631,2.62607,3808.0,3807.9,0.707]
[1717275861006,2.62607,3808.0,3807.9,0.75688895]
[1717275865754,2.62607,3808.0,3807.9,0.707]
[1717275866538,2.62607,3808.0,3807.7,0.707]
[1717275866948,2.62607,3808.0,3807.8,0.0498426]
[1717275867251,2.62607,3808.0,3807.7,0.707]
[1717275867450,2.62607,3808.0,3807.8,0.0498426]
[1717275867663,2.62607,3808.0,3807.7,0.707]
[1717275867842,2.62607,3808.0,3807.8,0.0498426]
[1717275868045,2.62607,3808.0,3807.7,0.707]
[1717275868218,2.62607,3808.0,3807.8,0.0498426]
[1717275868539,2.62607,3808.0,3807.7,0.707]
[1717275868920,2.62607,3808.0,3807.8,0.0498426]